{"text_format":"3","workbook":"xlsx","n_sheets":4,"sheets":["Início","Orçamento de casamento","Despesas discriminadas","Despesas discriminadas contadas"],"not_rendered":{"charts":1,"images":2,"defined_names":22},"read":"whole","date_system":"1900"}

{"sheet":"Início","index":0,"n_rows":9,"n_cols":2,"rows_kept":9}
[]
[null,"SOBRE ESTE MODELO"]
[]
[null,"Use este modelo para controlar suas despesas de casamento."]
[null,"Insira os custos reais e estimados incorridos nas várias categorias em planilhas separadas."]
[null,"O gráfico e o resumo do orçamento de casamento são atualizados automaticamente para você."]
[null,"Observação: "]
[null,"há instruções adicionais na coluna A de cada planilha. Este texto está oculto de propósito. Para removê-lo, selecione a coluna A e selecione Excluir. "]
[null,"Para saber mais sobre tabelas, pressione SHIFT e, em seguida, F10 dentro de uma tabela, selecione a opção TABELA e, em seguida, selecione TEXTO ALTERNATIVO."]

{"sheet":"Orçamento de casamento","index":1,"n_rows":17,"n_cols":5,"rows_kept":17,"merged":[[3,1,3,3],[17,1,40,4]]}
[]
["Crie um Orçamento de casamento nesta planilha. Atualize o resumo e o gráfico na planilha atual inserindo detalhes nas tabelas das planilhas Roupas-Festa-Música-Fotos e Decor-Flores-Presentes-Viagem. Instruções úteis sobre como usar esta planilha estão nas células desta coluna. O rótulo Data de casamento está na célula C1.","Data do casamento:",null,"Dias restantes:"]
["Insira a Data de casamento na célula C2. Os Dias restantes são calculados automaticamente na célula E2.","2023-09-23",null,{"$f":"B3-TODAY()","v":179}]
[null,"Resumo do orçamento de casamento"]
[]
["A Tabela de resumo do orçamento que começa na célula C6 é atualizada automaticamente. A próxima instrução está na célula A19.","CATEGORIA","ESTIMADO","REAL","ACIMA/ABAIXO"]
[null,"Viagem",{"$f":"Total_de_Viagem_transporte_est","v":{"v":100,"d":"100.00"}},{"$f":"Total_de_Viagem_transporte_real","v":{"v":165,"d":"165.00"}},{"$f":"ResumoDoOrçamento[[#This Row],[ESTIMADO]]-ResumoDoOrçamento[[#This Row],[REAL]]","v":{"v":-65,"d":"-65.00"}}]
[null,"Música",{"$f":"Total_de_Música_entretenimento_est","v":{"v":600,"d":"600.00"}},{"$f":"Total_de_Música_entretenimento_real","v":{"v":400,"d":"400.00"}},{"$f":"ResumoDoOrçamento[[#This Row],[ESTIMADO]]-ResumoDoOrçamento[[#This Row],[REAL]]","v":{"v":200,"d":"200.00"}}]
[null,"Decorações",{"$f":"Total_de_Decoração_est","v":{"v":700,"d":"700.00"}},{"$f":"Total_de_Decoração_real","v":{"v":720,"d":"720.00"}},{"$f":"ResumoDoOrçamento[[#This Row],[ESTIMADO]]-ResumoDoOrçamento[[#This Row],[REAL]]","v":{"v":-20,"d":"-20.00"}}]
[null,"Flores",{"$f":"Total_de_Flores_est","v":{"v":900,"d":"900.00"}},{"$f":"Total_de_Flores_real","v":{"v":850,"d":"850.00"}},{"$f":"ResumoDoOrçamento[[#This Row],[ESTIMADO]]-ResumoDoOrçamento[[#This Row],[REAL]]","v":{"v":50,"d":"50.00"}}]
[null,"Impressão",{"$f":"Total_de_Impressão_gráfica_est","v":{"v":935,"d":"935.00"}},{"$f":"Total_de_Impressão_gráfica_real","v":{"v":870,"d":"870.00"}},{"$f":"ResumoDoOrçamento[[#This Row],[ESTIMADO]]-ResumoDoOrçamento[[#This Row],[REAL]]","v":{"v":65,"d":"65.00"}}]
[null,"Recepção",{"$f":"Total_da_Festa_est","v":{"v":1050,"d":"1,050.00"}},{"$f":"Total_da_Festa_real","v":{"v":928,"d":"928.00"}},{"$f":"ResumoDoOrçamento[[#This Row],[ESTIMADO]]-ResumoDoOrçamento[[#This Row],[REAL]]","v":{"v":122,"d":"122.00"}}]
[null,"Outros",{"$f":"Total_de_Outras_despesas_est","v":{"v":885,"d":"885.00"}},{"$f":"Total_de_Outras_despesas_real","v":{"v":1021,"d":"1,021.00"}},{"$f":"ResumoDoOrçamento[[#This Row],[ESTIMADO]]-ResumoDoOrçamento[[#This Row],[REAL]]","v":{"v":-136,"d":"-136.00"}}]
[null,"Presentes",{"$f":"Total_de_Presentes_est","v":{"v":1345,"d":"1,345.00"}},{"$f":"Total_de_Presentes_real","v":{"v":1075,"d":"1,075.00"}},{"$f":"ResumoDoOrçamento[[#This Row],[ESTIMADO]]-ResumoDoOrçamento[[#This Row],[REAL]]","v":{"v":270,"d":"270.00"}}]
[null,"Fotografia",{"$f":"Total_de_Fotografia_est","v":{"v":1625,"d":"1,625.00"}},{"$f":"Total_de_Fotografia_real","v":{"v":1575,"d":"1,575.00"}},{"$f":"ResumoDoOrçamento[[#This Row],[ESTIMADO]]-ResumoDoOrçamento[[#This Row],[REAL]]","v":{"v":50,"d":"50.00"}}]
[null,"Vestuário",{"$f":"Total_de_Roupas_est","v":{"v":9490,"d":"9,490.00"}},{"$f":"Total_de_Roupas_real","v":{"v":9770,"d":"9,770.00"}},{"$f":"ResumoDoOrçamento[[#This Row],[ESTIMADO]]-ResumoDoOrçamento[[#This Row],[REAL]]","v":{"v":-280,"d":"-280.00"}}]
[null,"Despesas totais",{"$f":"SUBTOTAL(109,ResumoDoOrçamento[ESTIMADO])","v":{"v":17630,"d":"17,630.00"}},{"$f":"SUBTOTAL(109,ResumoDoOrçamento[REAL])","v":{"v":17374,"d":"17,374.00"}},{"$f":"SUBTOTAL(109,ResumoDoOrçamento[ACIMA/ABAIXO])","v":{"v":256,"d":"256.00"}}]

{"sheet":"Despesas discriminadas","index":2,"n_rows":59,"n_cols":6,"rows_kept":59,"merged":[[1,1,1,4]]}
[]
[null,"Despesas discriminadas"]
[]
["Insira os custos Reais e Estimados para cada categoria nas respectivas tabelas desta planilha. O valor acima ou abaixo é calculado automaticamente. O rótulo Roupas está na célula à direita. Instruções úteis sobre como usar esta planilha estão nas células desta coluna. Pressione Seta para baixo para começar.","Vestuário",{"$nulls":3}," "]
[" Insira os detalhes na tabela Roupas, começando na célula à direita. A próxima instrução está na célula A18.","CATEGORIA","ESTIMADO","REAL","ACIMA/ABAIXO"," "]
[null,"Anel(is) de noivado",{"v":1500,"d":"1,500.00"},{"v":1500,"d":"1,500.00"},{"$f":"'Despesas discriminadas'!$C6-'Despesas discriminadas'!$D6","v":{"v":0,"d":"0.00"}}]
[null,"Anel do cônjuge 1",{"v":2000,"d":"2,000.00"},{"v":2300,"d":"2,300.00"},{"$f":"'Despesas discriminadas'!$C7-'Despesas discriminadas'!$D7","v":{"v":-300,"d":"-300.00 "}}]
[null,"Traje/smoking do cônjuge 1",{"v":3000,"d":"3,000.00"},{"v":2750,"d":"2,750.00"},{"$f":"'Despesas discriminadas'!$C8-'Despesas discriminadas'!$D8","v":{"v":250,"d":"250.00"}}]
[null,"Véu/tiara do cônjuge 1",{"v":500,"d":"500.00"},{"v":500,"d":"500.00"},{"$f":"'Despesas discriminadas'!$C9-'Despesas discriminadas'!$D9","v":{"v":0,"d":"0.00"}}]
[null,"Sapatos do cônjuge 1",{"v":350,"d":"350.00"},{"v":300,"d":"300.00"},{"$f":"'Despesas discriminadas'!$C10-'Despesas discriminadas'!$D10","v":{"v":50,"d":"50.00"}}]
[null,"Joias do cônjuge 1",{"v":400,"d":"400.00"},{"v":550,"d":"550.00"},{"$f":"'Despesas discriminadas'!$C11-'Despesas discriminadas'!$D11","v":{"v":-150,"d":"-150.00 "}}]
[null,"Meias do cônjuge 1",{"v":20,"d":"20.00"},{"v":20,"d":"20.00"},{"$f":"'Despesas discriminadas'!$C12-'Despesas discriminadas'!$D12","v":{"v":0,"d":"0.00"}}]
[null,"Anel do cônjuge 2",{"v":300,"d":"300.00"},{"v":250,"d":"250.00"},{"$f":"'Despesas discriminadas'!$C13-'Despesas discriminadas'!$D13","v":{"v":50,"d":"50.00"}}]
[null,"Traje/smoking do cônjuge 2",{"v":300,"d":"300.00"},{"v":350,"d":"350.00"},{"$f":"'Despesas discriminadas'!$C14-'Despesas discriminadas'!$D14","v":{"v":-50,"d":"-50.00 "}}]
[null,"Véu/tiara do cônjuge 2",{"v":500,"d":"500.00"},{"v":500,"d":"500.00"},{"$f":"'Despesas discriminadas'!$C15-'Despesas discriminadas'!$D15","v":{"v":0,"d":"0.00"}}]
[null,"Sapatos do cônjuge 2",{"v":200,"d":"200.00"},{"v":175,"d":"175.00"},{"$f":"'Despesas discriminadas'!$C16-'Despesas discriminadas'!$D16","v":{"v":25,"d":"25.00"}}]
[null,"Joias do cônjuge 2",{"v":400,"d":"400.00"},{"v":550,"d":"550.00"},{"$f":"'Despesas discriminadas'!$C17-'Despesas discriminadas'!$D17","v":{"v":-150,"d":"-150.00 "}}]
[null,"Meias do cônjuge 2",{"v":20,"d":"20.00"},{"v":25,"d":"25.00"},{"$f":"'Despesas discriminadas'!$C18-'Despesas discriminadas'!$D18","v":{"v":-5,"d":"-5.00 "}}]
[null,"Total das roupas",{"$f":"SUBTOTAL(109,Vestuário[ESTIMADO])","v":{"v":9490,"d":"9,490.00"}},{"$f":"SUBTOTAL(109,Vestuário[REAL])","v":{"v":9770,"d":"9,770.00"}},{"$f":"SUBTOTAL(109,Vestuário[ACIMA/ABAIXO])","v":{"v":-280,"d":"-280.00 "}}]
[]
["O rótulo Festa está na célula à direita.","Recepção*"]
["Insira na tabela que começa na célula à direita os custos com a Festa, excluindo os custos com Entretenimento e Decoração. A próxima instrução está na célula A31.","CATEGORIA","ESTIMADO","REAL","ACIMA/ABAIXO"]
[null,"Taxas de salas/salão",{"v":200,"d":"200.00"},{"v":150,"d":"150.00"},{"$f":"'Despesas discriminadas'!$C23-'Despesas discriminadas'!$D23","v":{"v":50,"d":"50.00"}}]
[null,"Mesas e cadeiras",{"v":100,"d":"100.00"},{"v":50,"d":"50.00"},{"$f":"'Despesas discriminadas'!$C24-'Despesas discriminadas'!$D24","v":{"v":50,"d":"50.00"}}]
[null,"Alimentação",{"v":0,"d":"0.00"},{"v":0,"d":"0.00"},{"$f":"'Despesas discriminadas'!$C25-'Despesas discriminadas'!$D25","v":{"v":0,"d":"0.00"}}]
[null,"Bebidas",{"v":0,"d":"0.00"},{"v":0,"d":"0.00"},{"$f":"'Despesas discriminadas'!$C26-'Despesas discriminadas'!$D26","v":{"v":0,"d":"0.00"}}]
[null,"Roupa de mesa",{"v":0,"d":"0.00"},{"v":0,"d":"0.00"},{"$f":"'Despesas discriminadas'!$C27-'Despesas discriminadas'!$D27","v":{"v":0,"d":"0.00"}}]
[null,"Bolo",{"v":700,"d":"700.00"},{"v":700,"d":"700.00"},{"$f":"'Despesas discriminadas'!$C28-'Despesas discriminadas'!$D28","v":{"v":0,"d":"0.00"}}]
[null,"Lembranças",{"v":50,"d":"50.00"},{"v":28,"d":"28.00"},{"$f":"'Despesas discriminadas'!$C29-'Despesas discriminadas'!$D29","v":{"v":22,"d":"22.00"}}]
[null,"Funcionários e gorjetas",{"v":0,"d":"0.00"},{"v":0,"d":"0.00"},{"$f":"'Despesas discriminadas'!$C30-'Despesas discriminadas'!$D30","v":{"v":0,"d":"0.00"}}]
[null,"Total da festa",{"$f":"SUBTOTAL(109,Recepção[ESTIMADO])","v":{"v":1050,"d":"1,050.00"}},{"$f":"SUBTOTAL(109,Recepção[REAL])","v":{"v":928,"d":"928.00"}},{"$f":"SUBTOTAL(109,Recepção[ACIMA/ABAIXO])","v":{"v":122,"d":"122.00"}}]
[null,"* Exceto decoração e entretenimento"]
[]
["O rótulo Música ou Entretenimento está na célula à direita.","Música/entretenimento"]
["Insira os detalhes na tabela Música, começando na célula à direita. A próxima instrução está na célula A37.","CATEGORIA","ESTIMADO","REAL","ACIMA/ABAIXO"]
[null,"Músicos para a cerimônia",{"v":400,"d":"400.00"},{"v":400,"d":"400.00"},{"$f":"'Despesas discriminadas'!$C36-'Despesas discriminadas'!$D36","v":{"v":0,"d":"0.00"}}]
[null,"Banda/DJ para a festa",{"v":200,"d":"200.00"},{"v":0,"d":"0.00"},{"$f":"'Despesas discriminadas'!$C37-'Despesas discriminadas'!$D37","v":{"v":200,"d":"200.00"}}]
[null,"Total de Música/Entretenimento",{"$f":"SUBTOTAL(109,Música[ESTIMADO])","v":{"v":600,"d":"600.00"}},{"$f":"SUBTOTAL(109,Música[REAL])","v":{"v":400,"d":"400.00"}},{"$f":"SUBTOTAL(109,Música[ACIMA/ABAIXO])","v":{"v":200,"d":"200.00"}}]
[]
["O rótulo Impressão ou Gráfica está na célula à direita.","Impressão/gráfica"]
["Insira os detalhes na tabela Impressão, começando na célula à direita. A próxima instrução está na célula A50.","CATEGORIA","ESTIMADO","REAL","ACIMA/ABAIXO"]
[null,"Convites",{"v":500,"d":"500.00"},{"v":450,"d":"450.00"},{"$f":"'Despesas discriminadas'!$C42-'Despesas discriminadas'!$D42","v":{"v":50,"d":"50.00"}}]
[null,"Comunicados",{"v":200,"d":"200.00"},{"v":175,"d":"175.00"},{"$f":"'Despesas discriminadas'!$C43-'Despesas discriminadas'!$D43","v":{"v":25,"d":"25.00"}}]
[null,"Cartões de agradecimento",{"v":100,"d":"100.00"},{"v":100,"d":"100.00"},{"$f":"'Despesas discriminadas'!$C44-'Despesas discriminadas'!$D44","v":{"v":0,"d":"0.00"}}]
[null,"Papel de carta pessoal",{"v":0,"d":"0.00"},{"v":0,"d":"0.00"},{"$f":"'Despesas discriminadas'!$C45-'Despesas discriminadas'!$D45","v":{"v":0,"d":"0.00"}}]
[null,"Livro de convidados",{"v":25,"d":"25.00"},{"v":25,"d":"25.00"},{"$f":"'Despesas discriminadas'!$C46-'Despesas discriminadas'!$D46","v":{"v":0,"d":"0.00"}}]
[null,"Programas",{"v":75,"d":"75.00"},{"v":80,"d":"80.00"},{"$f":"'Despesas discriminadas'!$C47-'Despesas discriminadas'!$D47","v":{"v":-5,"d":"-5.00 "}}]
[null,"Guardanapos da festa",{"v":35,"d":"35.00"},{"v":40,"d":"40.00"},{"$f":"'Despesas discriminadas'!$C48-'Despesas discriminadas'!$D48","v":{"v":-5,"d":"-5.00 "}}]
[null,"Cartela de fósforos",{"v":0,"d":"0.00"},{"v":0,"d":"0.00"},{"$f":"'Despesas discriminadas'!$C49-'Despesas discriminadas'!$D49","v":{"v":0,"d":"0.00"}}]
[null,"Caligrafia",{"v":0,"d":"0.00"},{"v":0,"d":"0.00"},{"$f":"'Despesas discriminadas'!$C50-'Despesas discriminadas'!$D50","v":{"v":0,"d":"0.00"}}]
[null,"Total de Impressão/Gráfica",{"$f":"SUBTOTAL(109,Impressão[ESTIMADO])","v":{"v":935,"d":"935.00"}},{"$f":"SUBTOTAL(109,Impressão[REAL])","v":{"v":870,"d":"870.00"}},{"$f":"SUBTOTAL(109,Impressão[ACIMA/ABAIXO])","v":{"v":65,"d":"65.00"}}]
[]
["O rótulo Fotografia está na célula à direita.","Fotografia"]
["Insira os detalhes na tabela Fotografia, começando na célula à direita.","CATEGORIA","ESTIMADO","REAL","ACIMA/ABAIXO"]
[null,"Trajes formais",{"v":1300,"d":"1,300.00"},{"v":1300,"d":"1,300.00"},{"$f":"'Despesas discriminadas'!$C55-'Despesas discriminadas'!$D55","v":{"v":0,"d":"0.00"}}]
[null,"Impressões adicionais",{"v":25,"d":"25.00"},{"v":25,"d":"25.00"},{"$f":"'Despesas discriminadas'!$C56-'Despesas discriminadas'!$D56","v":{"v":0,"d":"0.00"}}]
[null,"Álbuns de fotos",{"v":100,"d":"100.00"},{"v":100,"d":"100.00"},{"$f":"'Despesas discriminadas'!$C57-'Despesas discriminadas'!$D57","v":{"v":0,"d":"0.00"}}]
[null,"Videografia",{"v":200,"d":"200.00"},{"v":150,"d":"150.00"},{"$f":"'Despesas discriminadas'!$C58-'Despesas discriminadas'!$D58","v":{"v":50,"d":"50.00"}}]
[null,"Total de fotografia",{"$f":"SUBTOTAL(109,Fotografia[ESTIMADO])","v":{"v":1625,"d":"1,625.00"}},{"$f":"SUBTOTAL(109,Fotografia[REAL])","v":{"v":1575,"d":"1,575.00"}},{"$f":"SUBTOTAL(109,Fotografia[ACIMA/ABAIXO])","v":{"v":50,"d":"50.00"}}]

{"sheet":"Despesas discriminadas contadas","index":3,"n_rows":51,"n_cols":5,"rows_kept":51,"merged":[[1,1,1,4]]}
[]
[null,"Despesas discriminadas continuadas"]
[]
["Insira os custos Reais e Estimados para cada categoria nas respectivas tabelas desta planilha. O valor acima ou abaixo é calculado automaticamente. O rótulo Decoração está na célula à direita. Instruções úteis sobre como usar esta planilha estão nas células desta coluna. Pressione Seta para baixo para começar.","Decorações*"]
["Insira na tabela que começa na célula à direita os custos com Decoração, excluindo os custos com flores. A próxima instrução está na célula A11.","CATEGORIA","ESTIMADO","REAL","ACIMA/ABAIXO"]
[null,"Laços para os assentos",{"v":0,"d":"0.00"},{"v":0,"d":"0.00"},{"$f":"'Despesas discriminadas contadas'!$C6-'Despesas discriminadas contadas'!$D6","v":{"v":0,"d":"0.00"}}]
[null,"Peças de centro",{"v":300,"d":"300.00"},{"v":320,"d":"320.00"},{"$f":"'Despesas discriminadas contadas'!$C7-'Despesas discriminadas contadas'!$D7","v":{"v":-20,"d":"-20.00 "}}]
[null,"Velas",{"v":100,"d":"100.00"},{"v":75,"d":"75.00"},{"$f":"'Despesas discriminadas contadas'!$C8-'Despesas discriminadas contadas'!$D8","v":{"v":25,"d":"25.00"}}]
[null,"Iluminação",{"v":100,"d":"100.00"},{"v":75,"d":"75.00"},{"$f":"'Despesas discriminadas contadas'!$C9-'Despesas discriminadas contadas'!$D9","v":{"v":25,"d":"25.00"}}]
[null,"Balões",{"v":200,"d":"200.00"},{"v":250,"d":"250.00"},{"$f":"'Despesas discriminadas contadas'!$C10-'Despesas discriminadas contadas'!$D10","v":{"v":-50,"d":"-50.00 "}}]
[null,"Total de decoração",{"$f":"SUBTOTAL(109,Decorações[ESTIMADO])","v":{"v":700,"d":"700.00"}},{"$f":"SUBTOTAL(109,Decorações[REAL])","v":{"v":720,"d":"720.00"}},{"$f":"SUBTOTAL(109,Decorações[ACIMA/ABAIXO])","v":{"v":-20,"d":"-20.00 "}}]
[null,"*Exceto flores"]
[]
["O rótulo Flores está na célula à direita.","Flores"]
["Insira os detalhes na tabela Flores, começando na célula à direita. A próxima instrução está na célula A20.","CATEGORIA","ESTIMADO","REAL","ACIMA/ABAIXO"]
[null,"Buquês",{"v":500,"d":"500.00"},{"v":450,"d":"450.00"},{"$f":"'Despesas discriminadas contadas'!$C16-'Despesas discriminadas contadas'!$D16","v":{"v":50,"d":"50.00"}}]
[null,"Flores de lapela",{"v":0,"d":"0.00"},{"v":0,"d":"0.00"},{"$f":"'Despesas discriminadas contadas'!$C17-'Despesas discriminadas contadas'!$D17","v":{"v":0,"d":"0.00"}}]
[null,"Corsages",{"v":0,"d":"0.00"},{"v":0,"d":"0.00"},{"$f":"'Despesas discriminadas contadas'!$C18-'Despesas discriminadas contadas'!$D18","v":{"v":0,"d":"0.00"}}]
[null,"Cerimônia",{"v":400,"d":"400.00"},{"v":400,"d":"400.00"},{"$f":"'Despesas discriminadas contadas'!$C19-'Despesas discriminadas contadas'!$D19","v":{"v":0,"d":"0.00"}}]
[null,"Recepção",{"v":0,"d":"0.00"},{"v":0,"d":"0.00"},{"$f":"'Despesas discriminadas contadas'!$C20-'Despesas discriminadas contadas'!$D20","v":{"v":0,"d":"0.00"}}]
[null,"Total de flores",{"$f":"SUBTOTAL(109,Flores[ESTIMADO])","v":{"v":900,"d":"900.00"}},{"$f":"SUBTOTAL(109,Flores[REAL])","v":{"v":850,"d":"850.00"}},{"$f":"SUBTOTAL(109,Flores[ACIMA/ABAIXO])","v":{"v":50,"d":"50.00"}}]
[]
["O rótulo Presentes está na célula à direita.","Presentes"]
["Insira os detalhes na tabela Presentes, começando na célula à direita. A próxima instrução está na célula A29.","CATEGORIA","ESTIMADO","REAL","ACIMA/ABAIXO"]
[null,"Participantes",{"v":1000,"d":"1,000.00"},{"v":400,"d":"400.00"},{"$f":"'Despesas discriminadas contadas'!$C25-'Despesas discriminadas contadas'!$D25","v":{"v":600,"d":"600.00"}}]
[null,"Futuro cônjuge 1",{"v":150,"d":"150.00"},{"v":200,"d":"200.00"},{"$f":"'Despesas discriminadas contadas'!$C26-'Despesas discriminadas contadas'!$D26","v":{"v":-50,"d":"-50.00 "}}]
[null,"Futuro cônjuge 2",{"v":150,"d":"150.00"},{"v":200,"d":"200.00"},{"$f":"'Despesas discriminadas contadas'!$C27-'Despesas discriminadas contadas'!$D27","v":{"v":-50,"d":"-50.00 "}}]
[null,"Pais",{"v":25,"d":"25.00"},{"v":25,"d":"25.00"},{"$f":"'Despesas discriminadas contadas'!$C28-'Despesas discriminadas contadas'!$D28","v":{"v":0,"d":"0.00"}}]
[null,"Leitores/outros participantes",{"v":20,"d":"20.00"},{"v":250,"d":"250.00"},{"$f":"'Despesas discriminadas contadas'!$C29-'Despesas discriminadas contadas'!$D29","v":{"v":-230,"d":"-230.00 "}}]
[null,"Total de presentes",{"$f":"SUBTOTAL(109,Presentes[ESTIMADO])","v":{"v":1345,"d":"1,345.00"}},{"$f":"SUBTOTAL(109,Presentes[REAL])","v":{"v":1075,"d":"1,075.00"}},{"$f":"SUBTOTAL(109,Presentes[ACIMA/ABAIXO])","v":{"v":270,"d":"270.00"}}]
[]
["O rótulo Viagem ou Transporte está na célula à direita.","Viagem/transporte"]
["Insira os detalhes na tabela Viagem, começando na célula à direita. A próxima instrução está na célula A36.","CATEGORIA","ESTIMADO","REAL","ACIMA/ABAIXO"]
[null,"Limusines/carrinhos",{"v":100,"d":"100.00"},{"v":125,"d":"125.00"},{"$f":"'Despesas discriminadas contadas'!$C34-'Despesas discriminadas contadas'!$D34","v":{"v":-25,"d":"-25.00 "}}]
[null,"Estacionamento",{"v":0,"d":"0.00"},{"v":40,"d":"40.00"},{"$f":"'Despesas discriminadas contadas'!$C35-'Despesas discriminadas contadas'!$D35","v":{"v":-40,"d":"-40.00 "}}]
[null,"Táxis",{"v":0,"d":"0.00"},{"v":0,"d":"0.00"},{"$f":"'Despesas discriminadas contadas'!$C36-'Despesas discriminadas contadas'!$D36","v":{"v":0,"d":"0.00"}}]
[null,"Total de viagem/transporte",{"$f":"SUBTOTAL(109,Viagem[ESTIMADO])","v":{"v":100,"d":"100.00"}},{"$f":"SUBTOTAL(109,Viagem[REAL])","v":{"v":165,"d":"165.00"}},{"$f":"SUBTOTAL(109,Viagem[ACIMA/ABAIXO])","v":{"v":-65,"d":"-65.00 "}}]
[]
["O rótulo Outras despesas está na célula à direita.","Outras despesas"]
["Insira os detalhes na tabela Outras despesas, começando na célula à direita.","CATEGORIA","ESTIMADO","REAL","ACIMA/ABAIXO"]
[null,"Sacerdote",{"v":0,"d":"0.00"},{"v":0,"d":"0.00"},{"$f":"'Despesas discriminadas contadas'!$C41-'Despesas discriminadas contadas'!$D41","v":{"v":0,"d":"0.00"}}]
[null,"Taxa da igreja/local da cerimônia",{"v":40,"d":"40.00"},{"v":55,"d":"55.00"},{"$f":"'Despesas discriminadas contadas'!$C42-'Despesas discriminadas contadas'!$D42","v":{"v":-15,"d":"-15.00 "}}]
[null,"Coordenador de casamento",{"v":0,"d":"0.00"},{"v":0,"d":"0.00"},{"$f":"'Despesas discriminadas contadas'!$C43-'Despesas discriminadas contadas'!$D43","v":{"v":0,"d":"0.00"}}]
[null,"Jantar de ensaio",{"v":450,"d":"450.00"},{"v":450,"d":"450.00"},{"$f":"'Despesas discriminadas contadas'!$C44-'Despesas discriminadas contadas'!$D44","v":{"v":0,"d":"0.00"}}]
[null,"Festa de noivado",{"v":20,"d":"20.00"},{"v":50,"d":"50.00"},{"$f":"'Despesas discriminadas contadas'!$C45-'Despesas discriminadas contadas'!$D45","v":{"v":-30,"d":"-30.00 "}}]
[null,"Chás de cozinha",{"v":30,"d":"30.00"},{"v":20,"d":"20.00"},{"$f":"'Despesas discriminadas contadas'!$C46-'Despesas discriminadas contadas'!$D46","v":{"v":10,"d":"10.00"}}]
[null,"Salão de beleza",{"v":45,"d":"45.00"},{"v":46,"d":"46.00"},{"$f":"'Despesas discriminadas contadas'!$C47-'Despesas discriminadas contadas'!$D47","v":{"v":-1,"d":"-1.00 "}}]
[null,"Despedidas de solteira/solteiro",{"v":0,"d":"0.00"},{"v":0,"d":"0.00"},{"$f":"'Despesas discriminadas contadas'!$C48-'Despesas discriminadas contadas'!$D48","v":{"v":0,"d":"0.00"}}]
[null,"Brunch",{"v":300,"d":"300.00"},{"v":400,"d":"400.00"},{"$f":"'Despesas discriminadas contadas'!$C49-'Despesas discriminadas contadas'!$D49","v":{"v":-100,"d":"-100.00 "}}]
[null,"Quartos de hotel",{"v":0,"d":"0.00"},{"v":0,"d":"0.00"},{"$f":"'Despesas discriminadas contadas'!$C50-'Despesas discriminadas contadas'!$D50","v":{"v":0,"d":"0.00"}}]
[null,"Total de outras despesas",{"$f":"SUBTOTAL(109,OutrasDespesas[ESTIMADO])","v":{"v":885,"d":"885.00"}},{"$f":"SUBTOTAL(109,OutrasDespesas[REAL])","v":{"v":1021,"d":"1,021.00"}},{"$f":"SUBTOTAL(109,OutrasDespesas[ACIMA/ABAIXO])","v":{"v":-136,"d":"-136.00 "}}]